[Event "*** Titled Tuesday Blitz"]
[Site "Chess.com"]
[Date "2021.03.30"]
[Round "6"]
[White "Kozok"]
[Black "Chessmasterzt"]
[Result "1-0"]
[WhiteElo "2507"]
[BlackElo "2610"]
[TimeControl "180+1"]
[EndTime "11:06:01 PDT"]
[Termination "Kozok won by checkmate"]

1. e4 {[%clk 0:03:00.9]} 1... d6 {[%clk 0:02:59.5]} 2. d4 {[%clk 0:03:01.2]}
2... Nf6 {[%clk 0:03:00]} 3. Nc3 {[%clk 0:02:58.2]} 3... e5 {[%clk 0:03:00.5]}
4. Nf3 {[%clk 0:02:57.1]} 4... Nbd7 {[%clk 0:03:01]} 5. Rg1 {[%clk 0:02:56.4]}
5... g6 {[%clk 0:02:52.3]} 6. g4 {[%clk 0:02:56.5]} 6... Bg7 {[%clk 0:02:52.4]}
7. g5 {[%clk 0:02:56]} 7... Nh5 {[%clk 0:02:50.2]} 8. Be3 {[%clk 0:02:56.3]}
8... c6 {[%clk 0:02:46.3]} 9. Qd2 {[%clk 0:02:49.1]} 9... b5 {[%clk 0:02:41.2]}
10. O-O-O {[%clk 0:02:43.6]} 10... O-O {[%clk 0:02:30]} 11. dxe5 {[%clk
0:02:31.4]} 11... dxe5 {[%clk 0:02:21.5]} 12. Qd6 {[%clk 0:02:29.9]} 12... Qa5
{[%clk 0:01:53]} 13. Qxc6 {[%clk 0:01:49.7]} 13... b4 {[%clk 0:01:52.8]} 14.
Qxa8 {[%clk 0:01:42.1]} 14... bxc3 {[%clk 0:01:52.3]} 15. Qd5 {[%clk 0:01:42.5]}
15... cxb2+ {[%clk 0:01:38.2]} 16. Kb1 {[%clk 0:01:42.6]} 16... Qb4 {[%clk
0:01:27.1]} 17. Bc4 {[%clk 0:01:36.5]} 17... Nb6 {[%clk 0:01:20.9]} 18. Bxb6
{[%clk 0:01:24.3]} 18... axb6 {[%clk 0:01:21.8]} 19. Qb5 {[%clk 0:01:14.1]}
19... Qa3 {[%clk 0:01:22.1]} 20. Nxe5 {[%clk 0:01:10.8]} 20... Qe7 {[%clk
0:00:57.5]} 21. Nxf7 {[%clk 0:00:38]} 21... Rxf7 {[%clk 0:00:58.4]} 22. Bxf7+
{[%clk 0:00:38.7]} 22... Kxf7 {[%clk 0:00:56.2]} 23. f4 {[%clk 0:00:36.8]} 23...
h6 {[%clk 0:00:15.1]} 24. f5 {[%clk 0:00:33.7]} 24... hxg5 {[%clk 0:00:13.2]}
25. Qc4+ {[%clk 0:00:34]} 25... Kf8 {[%clk 0:00:12.5]} 26. Qxc8+ {[%clk
0:00:34.1]} 26... Kf7 {[%clk 0:00:12.3]} 27. fxg6+ {[%clk 0:00:33.7]} 27... Kxg6
{[%clk 0:00:12.3]} 28. Qf5+ {[%clk 0:00:34.4]} 28... Kh6 {[%clk 0:00:12.8]} 29.
h4 {[%clk 0:00:27.3]} 29... Bf6 {[%clk 0:00:08.9]} 30. hxg5+ {[%clk 0:00:25.5]}
30... Bxg5 {[%clk 0:00:09.8]} 31. Rd6+ {[%clk 0:00:24.1]} 31... Qxd6 {[%clk
0:00:06]} 32. Qxg5+ {[%clk 0:00:24.2]} 32... Kh7 {[%clk 0:00:06.5]} 33. Qg8+
{[%clk 0:00:22.3]} 33... Kh6 {[%clk 0:00:06.5]} 34. Qh8# {[%clk 0:00:23.2]} 1-0

[Event "*** Titled Tuesday Blitz"]
[Site "Chess.com"]
[Date "2021.03.30"]
[Round "6"]
[White "doctorcristian"]
[Black "Leo_C"]
[Result "1/2-1/2"]
[WhiteElo "2554"]
[BlackElo "2381"]
[TimeControl "180+1"]
[EndTime "11:06:03 PDT"]
[Termination "Game drawn by repetition"]

1. d4 {[%clk 0:02:48.7]} 1... d5 {[%clk 0:02:58.4]} 2. Bf4 {[%clk 0:02:48.2]}
2... c5 {[%clk 0:02:57.7]} 3. e3 {[%clk 0:02:48.1]} 3... Nc6 {[%clk 0:02:57.8]}
4. Nc3 {[%clk 0:02:48.1]} 4... cxd4 {[%clk 0:02:54.6]} 5. exd4 {[%clk
0:02:48.1]} 5... a6 {[%clk 0:02:54]} 6. Nf3 {[%clk 0:02:47.9]} 6... Bf5 {[%clk
0:02:53.4]} 7. Ne5 {[%clk 0:02:47]} 7... Rc8 {[%clk 0:02:49.9]} 8. g4 {[%clk
0:02:45.3]} 8... Bg6 {[%clk 0:02:40.1]} 9. h4 {[%clk 0:02:45.5]} 9... Nxe5
{[%clk 0:02:32.9]} 10. Bxe5 {[%clk 0:02:42.9]} 10... f6 {[%clk 0:02:32.2]} 11.
h5 {[%clk 0:02:41.3]} 11... Bf7 {[%clk 0:02:29]} 12. Bg3 {[%clk 0:02:39.1]}
12... e6 {[%clk 0:02:18.6]} 13. Bg2 {[%clk 0:02:32.8]} 13... Bb4 {[%clk
0:02:13.3]} 14. O-O {[%clk 0:02:29.4]} 14... Ne7 {[%clk 0:02:12.5]} 15. Ne2
{[%clk 0:02:27.4]} 15... O-O {[%clk 0:02:10.5]} 16. c3 {[%clk 0:02:27.4]} 16...
Bd6 {[%clk 0:02:10.1]} 17. Re1 {[%clk 0:02:25.1]} 17... e5 {[%clk 0:02:08.5]}
18. Qd2 {[%clk 0:02:15.8]} 18... e4 {[%clk 0:02:01]} 19. Bxd6 {[%clk 0:02:08.5]}
19... Qxd6 {[%clk 0:02:00.3]} 20. f3 {[%clk 0:02:03.7]} 20... f5 {[%clk
0:01:57.5]} 21. Qf4 {[%clk 0:02:01.5]} 21... Qb6 {[%clk 0:01:33.6]} 22. h6
{[%clk 0:01:45.3]} 22... Qxh6 {[%clk 0:01:27.5]} 23. Qxh6 {[%clk 0:01:44.1]}
23... gxh6 {[%clk 0:01:28.4]} 24. gxf5 {[%clk 0:01:28.7]} 24... exf3 {[%clk
0:01:26]} 25. Bxf3 {[%clk 0:01:28.1]} 25... Nxf5 {[%clk 0:01:25.8]} 26. Nf4
{[%clk 0:01:24.1]} 26... Rcd8 {[%clk 0:01:23]} 27. Re5 {[%clk 0:01:22.5]} 27...
Nh4 {[%clk 0:01:12.8]} 28. Bh1 {[%clk 0:01:22]} 28... Ng6 {[%clk 0:01:10.6]} 29.
Rf5 {[%clk 0:01:18.4]} 29... Nxf4 {[%clk 0:01:06.4]} 30. Rxf4 {[%clk 0:01:18.7]}
30... Be6 {[%clk 0:01:02]} 31. Raf1 {[%clk 0:01:18.4]} 31... Rxf4 {[%clk
0:00:59.2]} 32. Rxf4 {[%clk 0:01:18.4]} 32... Rf8 {[%clk 0:00:59.2]} 33. Rxf8+
{[%clk 0:01:18.4]} 33... Kxf8 {[%clk 0:00:58.1]} 34. Kf2 {[%clk 0:01:18.8]}
34... Ke7 {[%clk 0:00:57.2]} 35. Kg3 {[%clk 0:01:19.1]} 35... Kf6 {[%clk
0:00:56.8]} 36. Kh4 {[%clk 0:01:19.5]} 36... Bf7 {[%clk 0:00:45.1]} 37. c4
{[%clk 0:01:19.6]} 37... dxc4 {[%clk 0:00:41.1]} 38. Bxb7 {[%clk 0:01:19.5]}
38... a5 {[%clk 0:00:41.3]} 39. a3 {[%clk 0:01:19.2]} 39... Ke7 {[%clk
0:00:32.3]} 40. Kg4 {[%clk 0:01:16]} 40... Kd6 {[%clk 0:00:32.1]} 41. Kf4 {[%clk
0:01:15.6]} 41... Bd5 {[%clk 0:00:31.2]} 42. Bc8 {[%clk 0:01:15.7]} 42... Be6
{[%clk 0:00:23.1]} 43. Bb7 {[%clk 0:01:15.3]} 43... Bd5 {[%clk 0:00:22.8]} 44.
Ba6 {[%clk 0:01:14.8]} 44... h5 {[%clk 0:00:16.6]} 45. Kg5 {[%clk 0:01:14.6]}
45... Bf7 {[%clk 0:00:16.5]} 46. Bb7 {[%clk 0:01:12.7]} 46... Bd5 {[%clk
0:00:16.2]} 47. Bc8 {[%clk 0:01:11.9]} 47... Be6 {[%clk 0:00:15.8]} 48. Ba6
{[%clk 0:01:10.9]} 48... Bf7 {[%clk 0:00:15.3]} 49. Bb7 {[%clk 0:01:07.3]} 49...
Bd5 {[%clk 0:00:14.8]} 50. Ba6 {[%clk 0:01:03.3]} 50... Bf7 {[%clk 0:00:13.6]}
1/2-1/2

[Event "*** Titled Tuesday Blitz"]
[Site "Chess.com"]
[Date "2021.03.30"]
[Round "6"]
[White "Eternauta2400"]
[Black "SoldierOfGod1"]
[Result "1-0"]
[WhiteElo "2394"]
[BlackElo "2500"]
[TimeControl "180+1"]
[EndTime "11:06:04 PDT"]
[Termination "Eternauta2400 won on time"]

1. e4 {[%clk 0:03:00.9]} 1... c6 {[%clk 0:02:59]} 2. d4 {[%clk 0:02:54.3]} 2...
d5 {[%clk 0:02:58.7]} 3. exd5 {[%clk 0:02:55.2]} 3... cxd5 {[%clk 0:02:59.6]} 4.
c4 {[%clk 0:02:54]} 4... Nf6 {[%clk 0:02:59.5]} 5. Nc3 {[%clk 0:02:53]} 5... Nc6
{[%clk 0:02:59.7]} 6. Nf3 {[%clk 0:02:50.9]} 6... g6 {[%clk 0:02:56.9]} 7. cxd5
{[%clk 0:02:46.9]} 7... Nxd5 {[%clk 0:02:56.4]} 8. Qb3 {[%clk 0:02:40.8]} 8...
Nxc3 {[%clk 0:02:55.7]} 9. Bc4 {[%clk 0:02:40.1]} 9... Nd5 {[%clk 0:02:54.2]}
10. Bxd5 {[%clk 0:02:37.1]} 10... e6 {[%clk 0:02:53]} 11. Bxc6+ {[%clk
0:02:37.3]} 11... bxc6 {[%clk 0:02:53.9]} 12. O-O {[%clk 0:02:37.5]} 12... Qd5
{[%clk 0:02:53.6]} 13. Qa4 {[%clk 0:02:28.3]} 13... Bg7 {[%clk 0:02:50.5]} 14.
Bg5 {[%clk 0:02:24.8]} 14... O-O {[%clk 0:02:46.2]} 15. Rac1 {[%clk 0:02:24.8]}
15... Bd7 {[%clk 0:02:42.8]} 16. Rc5 {[%clk 0:02:21.4]} 16... Qd6 {[%clk
0:02:41.5]} 17. Rfc1 {[%clk 0:02:16.6]} 17... Rab8 {[%clk 0:02:32.7]} 18. b3
{[%clk 0:02:13.2]} 18... Rb7 {[%clk 0:02:31.8]} 19. g3 {[%clk 0:02:09.8]} 19...
Qc7 {[%clk 0:01:44.4]} 20. Bf4 {[%clk 0:02:07]} 20... Qb6 {[%clk 0:01:44.6]} 21.
Ne5 {[%clk 0:02:04.3]} 21... Bxe5 {[%clk 0:01:42.5]} 22. dxe5 {[%clk 0:01:59.7]}
22... Qb4 {[%clk 0:01:32.6]} 23. Qa6 {[%clk 0:01:55.7]} 23... Qb6 {[%clk
0:01:14.2]} 24. Qe2 {[%clk 0:01:51.8]} 24... a5 {[%clk 0:01:01]} 25. Bg5 {[%clk
0:01:49.7]} 25... h5 {[%clk 0:00:34.6]} 26. g4 {[%clk 0:01:37.2]} 26... a4
{[%clk 0:00:24.2]} 27. bxa4 {[%clk 0:01:34.8]} 27... Qb2 {[%clk 0:00:20.5]} 28.
Qf3 {[%clk 0:01:26]} 28... Rb4 {[%clk 0:00:05.4]} 29. gxh5 {[%clk 0:01:21]}
29... Qd4 {[%clk 0:00:05.4]} 30. h3 {[%clk 0:00:58.5]} 30... Qe4 {[%clk
0:00:03.3]} 31. Qg3 {[%clk 0:00:57.8]} 31... Qf5 {[%clk 0:00:02.5]} 32. h6
{[%clk 0:00:53.2]} 32... Kh7 {[%clk 0:00:02.5]} 33. R5c4 {[%clk 0:00:48.7]}
33... Rfb8 {[%clk 0:00:03.1]} 34. a3 {[%clk 0:00:45.2]} 34... Rb1 {[%clk
0:00:03.2]} 35. Kh2 {[%clk 0:00:38.8]} 35... Rxc1 {[%clk 0:00:03.1]} 36. Bxc1
{[%clk 0:00:36]} 36... c5 {[%clk 0:00:02.1]} 37. Rf4 {[%clk 0:00:35.6]} 1-0

[Event "*** Titled Tuesday Blitz"]
[Site "Chess.com"]
[Date "2021.03.30"]
[Round "6"]
[White "Alexander_Zubov"]
[Black "DenisQ"]
[Result "1-0"]
[WhiteElo "2972"]
[BlackElo "2647"]
[TimeControl "180+1"]
[EndTime "11:06:09 PDT"]
[Termination "Alexander_Zubov won by resignation"]

1. d4 {[%clk 0:03:00.9]} 1... d5 {[%clk 0:02:59.1]} 2. c4 {[%clk 0:03:00.3]}
2... c6 {[%clk 0:02:59.1]} 3. Nf3 {[%clk 0:02:59.9]} 3... Nf6 {[%clk 0:02:59.3]}
4. Qb3 {[%clk 0:02:58.5]} 4... dxc4 {[%clk 0:02:54.9]} 5. Qxc4 {[%clk
0:02:55.9]} 5... Bf5 {[%clk 0:02:55.5]} 6. g3 {[%clk 0:02:55.1]} 6... Nbd7
{[%clk 0:02:53.2]} 7. Bg2 {[%clk 0:02:55]} 7... e6 {[%clk 0:02:53.4]} 8. O-O
{[%clk 0:02:54.2]} 8... Be7 {[%clk 0:02:53.5]} 9. Nc3 {[%clk 0:02:53.4]} 9...
O-O {[%clk 0:02:52.2]} 10. Qb3 {[%clk 0:02:53.6]} 10... Qb6 {[%clk 0:02:51.7]}
11. Nd2 {[%clk 0:02:53.2]} 11... e5 {[%clk 0:02:42.1]} 12. d5 {[%clk 0:02:51.9]}
12... cxd5 {[%clk 0:02:36]} 13. Nxd5 {[%clk 0:02:51.8]} 13... Nxd5 {[%clk
0:02:35.5]} 14. Qxd5 {[%clk 0:02:36.6]} 14... Rab8 {[%clk 0:02:15.3]} 15. Nc4
{[%clk 0:02:01.3]} 15... Qe6 {[%clk 0:02:14]} 16. Be3 {[%clk 0:01:46.8]} 16...
Qxd5 {[%clk 0:02:01.7]} 17. Bxd5 {[%clk 0:01:46.2]} 17... b6 {[%clk 0:01:58.4]}
18. Rfd1 {[%clk 0:01:41.5]} 18... Rfd8 {[%clk 0:01:56.1]} 19. a4 {[%clk
0:01:35.4]} 19... Nf6 {[%clk 0:01:42.8]} 20. Bg2 {[%clk 0:01:20.2]} 20... Rxd1+
{[%clk 0:01:42.7]} 21. Rxd1 {[%clk 0:01:19.6]} 21... Bc2 {[%clk 0:01:43.1]} 22.
Ra1 {[%clk 0:01:15.6]} 22... e4 {[%clk 0:01:37.8]} 23. a5 {[%clk 0:01:06.3]}
23... Bc5 {[%clk 0:01:28.5]} 24. axb6 {[%clk 0:00:40.6]} 24... axb6 {[%clk
0:01:29.4]} 25. Nxb6 {[%clk 0:00:25.8]} 25... Bxe3 {[%clk 0:01:27.5]} 26. fxe3
{[%clk 0:00:26.7]} 26... h5 {[%clk 0:01:24.7]} 27. Nc4 {[%clk 0:00:26.7]} 27...
Rb4 {[%clk 0:01:14.6]} 28. Ne5 {[%clk 0:00:19.1]} 28... Rxb2 {[%clk 0:01:13.3]}
29. Ra8+ {[%clk 0:00:18.4]} 29... Kh7 {[%clk 0:01:12.8]} 30. h3 {[%clk
0:00:19.1]} 30... Bd1 {[%clk 0:00:53.8]} 31. Nxf7 {[%clk 0:00:18.8]} 31... Rxe2
{[%clk 0:00:53.1]} 32. Ra3 {[%clk 0:00:17.1]} 32... Re1+ {[%clk 0:00:42.7]} 33.
Kf2 {[%clk 0:00:16.3]} 33... Re2+ {[%clk 0:00:43]} 34. Kf1 {[%clk 0:00:16.9]}
34... Rb2 {[%clk 0:00:39.2]} 35. Ng5+ {[%clk 0:00:11.4]} 35... Kg6 {[%clk
0:00:39.3]} 36. Nxe4 {[%clk 0:00:09.5]} 36... Rxg2 {[%clk 0:00:35.9]} 37. Nxf6
{[%clk 0:00:07]} 37... Rxg3 {[%clk 0:00:33.4]} 38. Nd5 {[%clk 0:00:07.6]} 38...
Rxh3 {[%clk 0:00:32.1]} 39. Nf4+ {[%clk 0:00:07.8]} 1-0

[Event "*** Titled Tuesday Blitz"]
[Site "Chess.com"]
[Date "2021.03.30"]
[Round "6"]
[White "tjychess"]
[Black "anon219"]
[Result "0-1"]
[WhiteElo "2691"]
[BlackElo "2864"]
[TimeControl "180+1"]
[EndTime "11:06:10 PDT"]
[Termination "anon219 won by resignation"]

1. d4 {[%clk 0:03:00.9]} 1... d5 {[%clk 0:02:58.3]} 2. c4 {[%clk 0:03:01.2]}
2... e6 {[%clk 0:02:58.3]} 3. Nf3 {[%clk 0:03:01.2]} 3... Nf6 {[%clk 0:02:58.1]}
4. Nc3 {[%clk 0:03:01.7]} 4... Bb4 {[%clk 0:02:57.8]} 5. Qa4+ {[%clk 0:03:00.2]}
5... Nc6 {[%clk 0:02:57.5]} 6. e3 {[%clk 0:03:00.2]} 6... O-O {[%clk 0:02:56.6]}
7. Qc2 {[%clk 0:02:59.3]} 7... dxc4 {[%clk 0:02:56.6]} 8. Bxc4 {[%clk
0:03:00.2]} 8... Bd6 {[%clk 0:02:56.3]} 9. Nb5 {[%clk 0:02:53.8]} 9... Be7
{[%clk 0:02:44.4]} 10. O-O {[%clk 0:02:53.6]} 10... a6 {[%clk 0:02:45]} 11. Nc3
{[%clk 0:02:54]} 11... Bd6 {[%clk 0:02:45.7]} 12. h3 {[%clk 0:02:49.6]} 12... e5
{[%clk 0:02:45.4]} 13. a3 {[%clk 0:02:45.6]} 13... h6 {[%clk 0:02:45.3]} 14. Bd2
{[%clk 0:02:38.7]} 14... Re8 {[%clk 0:02:29.1]} 15. dxe5 {[%clk 0:02:12.9]}
15... Nxe5 {[%clk 0:02:30]} 16. Nxe5 {[%clk 0:02:13.2]} 16... Bxe5 {[%clk
0:02:30.1]} 17. Rad1 {[%clk 0:02:13.1]} 17... c6 {[%clk 0:02:12.4]} 18. Rfe1
{[%clk 0:02:00.7]} 18... Qe7 {[%clk 0:01:58.7]} 19. e4 {[%clk 0:01:20.7]} 19...
Nh5 {[%clk 0:01:50.5]} 20. Bf1 {[%clk 0:01:15.9]} 20... Nf4 {[%clk 0:01:23.8]}
21. Ne2 {[%clk 0:01:15.4]} 21... Nxe2+ {[%clk 0:01:13.9]} 22. Rxe2 {[%clk
0:01:16.3]} 22... Be6 {[%clk 0:01:08.3]} 23. f4 {[%clk 0:01:09.3]} 23... Bc7
{[%clk 0:01:08.4]} 24. Be3 {[%clk 0:01:03.9]} 24... Rad8 {[%clk 0:01:06.4]} 25.
Rxd8 {[%clk 0:01:00.4]} 25... Rxd8 {[%clk 0:01:03.4]} 26. g3 {[%clk 0:00:58.9]}
26... a5 {[%clk 0:00:58.2]} 27. Rd2 {[%clk 0:00:58.7]} 27... h5 {[%clk
0:00:52.8]} 28. Bg2 {[%clk 0:00:55.8]} 28... h4 {[%clk 0:00:51.2]} 29. g4 {[%clk
0:00:55]} 29... Rxd2 {[%clk 0:00:47.5]} 30. Qxd2 {[%clk 0:00:55.9]} 30... f6
{[%clk 0:00:46]} 31. Bf2 {[%clk 0:00:28.1]} 31... Qd6 {[%clk 0:00:41.6]} 32.
Qxd6 {[%clk 0:00:25.9]} 32... Bxd6 {[%clk 0:00:42.5]} 33. f5 {[%clk 0:00:21.5]}
33... Bb3 {[%clk 0:00:42.4]} 34. Bd4 {[%clk 0:00:20.8]} 34... a4 {[%clk
0:00:38.9]} 35. Kf2 {[%clk 0:00:21]} 35... b5 {[%clk 0:00:36.9]} 36. Bc3 {[%clk
0:00:19.4]} 36... c5 {[%clk 0:00:34.5]} 37. Bf1 {[%clk 0:00:18.8]} 37... b4
{[%clk 0:00:33.2]} 38. axb4 {[%clk 0:00:19.7]} 38... cxb4 {[%clk 0:00:32.3]} 39.
Bd4 {[%clk 0:00:19.1]} 39... a3 {[%clk 0:00:31.1]} 40. bxa3 {[%clk 0:00:19.7]}
40... bxa3 {[%clk 0:00:31]} 41. Ke3 {[%clk 0:00:16]} 41... a2 {[%clk 0:00:27.9]}
0-1

[Event "*** Titled Tuesday Blitz"]
[Site "Chess.com"]
[Date "2021.03.30"]
[Round "6"]
[White "m-garcett"]
[Black "NoGalloNoParty"]
[Result "0-1"]
[WhiteElo "2133"]
[BlackElo "2400"]
[TimeControl "180+1"]
[EndTime "11:06:10 PDT"]
[Termination "NoGalloNoParty won by resignation"]

1. e4 {[%clk 0:02:57.7]} 1... c5 {[%clk 0:02:53.3]} 2. Nf3 {[%clk 0:02:57.6]}
2... e6 {[%clk 0:02:52.7]} 3. d4 {[%clk 0:02:55.8]} 3... cxd4 {[%clk 0:02:53]}
4. Nxd4 {[%clk 0:02:56.7]} 4... Nc6 {[%clk 0:02:53.4]} 5. Nc3 {[%clk 0:02:54.6]}
5... Qc7 {[%clk 0:02:53.1]} 6. Be3 {[%clk 0:02:47.5]} 6... a6 {[%clk 0:02:52.2]}
7. f4 {[%clk 0:02:47.5]} 7... b5 {[%clk 0:02:46.9]} 8. Qf3 {[%clk 0:02:37.9]}
8... Bb7 {[%clk 0:02:36.1]} 9. O-O-O {[%clk 0:02:35.2]} 9... Nf6 {[%clk
0:02:29.8]} 10. a3 {[%clk 0:02:32.6]} 10... Rc8 {[%clk 0:02:24.8]} 11. Bd3
{[%clk 0:02:29]} 11... Be7 {[%clk 0:02:16.7]} 12. g4 {[%clk 0:02:28.4]} 12... b4
{[%clk 0:01:51.9]} 13. axb4 {[%clk 0:02:24.2]} 13... Nxb4 {[%clk 0:01:51.5]} 14.
g5 {[%clk 0:02:20.1]} 14... Ng8 {[%clk 0:01:18]} 15. h4 {[%clk 0:02:14.2]} 15...
Qa5 {[%clk 0:01:08.7]} 16. Nb3 {[%clk 0:02:12.8]} 16... Na2+ {[%clk 0:00:56.4]}
17. Nxa2 {[%clk 0:02:10.3]} 17... Qxa2 {[%clk 0:00:56.4]} 18. Kd2 {[%clk
0:01:45.7]} 18... Qxb2 {[%clk 0:00:55.8]} 19. Bd4 {[%clk 0:01:42.2]} 19... Bb4+
{[%clk 0:00:41.1]} 20. Ke2 {[%clk 0:01:41.4]} 20... Rxc2+ {[%clk 0:00:34.9]} 21.
Bxc2 {[%clk 0:01:34.1]} 21... Qxc2+ {[%clk 0:00:35.1]} 22. Nd2 {[%clk
0:01:33.4]} 22... Ne7 {[%clk 0:00:25]} 23. Qd3 {[%clk 0:01:19.8]} 23... Qc7
{[%clk 0:00:21.6]} 24. Bxg7 {[%clk 0:01:14.6]} 24... Rg8 {[%clk 0:00:19.7]} 25.
Be5 {[%clk 0:01:13.5]} 25... d6 {[%clk 0:00:18.3]} 26. Rc1 {[%clk 0:01:11.6]}
26... Qa5 {[%clk 0:00:16.8]} 27. Bc3 {[%clk 0:01:10]} 27... Nc6 {[%clk
0:00:12.8]} 28. Nc4 {[%clk 0:01:02.4]} 28... Qa2+ {[%clk 0:00:10.4]} 29. Rc2
{[%clk 0:01:01.3]} 29... Qa4 {[%clk 0:00:09.1]} 30. Bxb4 {[%clk 0:00:55.6]}
30... Nxb4 {[%clk 0:00:08.8]} 31. Nxd6+ {[%clk 0:00:54.7]} 31... Kf8 {[%clk
0:00:08.6]} 32. Nxb7 {[%clk 0:00:48.6]} 32... Nxd3 {[%clk 0:00:07.8]} 33. Kxd3
{[%clk 0:00:46.2]} 33... Qb3+ {[%clk 0:00:07.6]} 34. Rc3 {[%clk 0:00:46.1]}
34... Qxb7 {[%clk 0:00:07.7]} 35. h5 {[%clk 0:00:46.3]} 35... Kg7 {[%clk
0:00:08.1]} 36. h6+ {[%clk 0:00:46.2]} 36... Kg6 {[%clk 0:00:08.5]} 37. Rhc1
{[%clk 0:00:46.2]} 37... Rd8+ {[%clk 0:00:09]} 38. Ke3 {[%clk 0:00:46.5]} 38...
Qb6+ {[%clk 0:00:09.6]} 39. Rc5 {[%clk 0:00:46.2]} 39... Rc8 {[%clk 0:00:09.3]}
40. f5+ {[%clk 0:00:46.7]} 40... Kxg5 {[%clk 0:00:08.6]} 41. fxe6+ {[%clk
0:00:46.6]} 41... Rxc5 {[%clk 0:00:08.2]} 42. Rxc5+ {[%clk 0:00:42.2]} 42...
Qxc5+ {[%clk 0:00:08]} 0-1

[Event "*** Titled Tuesday Blitz"]
[Site "Chess.com"]
[Date "2021.03.30"]
[Round "6"]
[White "novocane"]
[Black "Pantata007"]
[Result "0-1"]
[WhiteElo "2216"]
[BlackElo "2380"]
[TimeControl "180+1"]
[EndTime "11:06:11 PDT"]
[Termination "Pantata007 won by resignation"]

1. d4 {[%clk 0:02:58.9]} 1... d5 {[%clk 0:02:59.2]} 2. c4 {[%clk 0:02:58.5]}
2... c6 {[%clk 0:02:59.5]} 3. cxd5 {[%clk 0:02:57.6]} 3... cxd5 {[%clk 0:02:59]}
4. Bf4 {[%clk 0:02:58.2]} 4... Nc6 {[%clk 0:02:57.7]} 5. e3 {[%clk 0:02:57.7]}
5... Bf5 {[%clk 0:02:57.8]} 6. Qb3 {[%clk 0:02:55.3]} 6... Qd7 {[%clk
0:02:36.3]} 7. Nc3 {[%clk 0:02:42.4]} 7... e6 {[%clk 0:02:35.3]} 8. Nf3 {[%clk
0:02:39.6]} 8... f6 {[%clk 0:02:35.2]} 9. Bb5 {[%clk 0:02:37.6]} 9... Nge7
{[%clk 0:02:24.2]} 10. Na4 {[%clk 0:02:24.8]} 10... Ng6 {[%clk 0:02:06.6]} 11.
Bg3 {[%clk 0:01:48.9]} 11... h5 {[%clk 0:02:06]} 12. O-O {[%clk 0:01:40.6]}
12... h4 {[%clk 0:01:52.2]} 13. Bf4 {[%clk 0:01:40]} 13... Nxf4 {[%clk
0:01:50.8]} 14. exf4 {[%clk 0:01:39.3]} 14... h3 {[%clk 0:01:49.1]} 15. g3
{[%clk 0:01:10.2]} 15... Bd6 {[%clk 0:01:47.3]} 16. Nc5 {[%clk 0:00:59.5]} 16...
Bxc5 {[%clk 0:01:45.9]} 17. dxc5 {[%clk 0:01:00.4]} 17... O-O {[%clk 0:01:37.9]}
18. Rac1 {[%clk 0:00:35.7]} 18... Qc7 {[%clk 0:01:24.5]} 19. Bxc6 {[%clk
0:00:23.3]} 19... bxc6 {[%clk 0:01:23.3]} 20. Nd4 {[%clk 0:00:23.5]} 20... Rfe8
{[%clk 0:01:16.1]} 21. Nxf5 {[%clk 0:00:16]} 21... exf5 {[%clk 0:01:15.8]} 22.
Qf3 {[%clk 0:00:12.9]} 22... g6 {[%clk 0:01:02]} 23. b3 {[%clk 0:00:11.2]} 23...
Qe7 {[%clk 0:00:56.5]} 24. Qd3 {[%clk 0:00:06.5]} 24... Qe2 {[%clk 0:00:46.6]}
25. Qxe2 {[%clk 0:00:04.8]} 25... Rxe2 {[%clk 0:00:47.5]} 26. a3 {[%clk
0:00:04.8]} 26... Rae8 {[%clk 0:00:39.9]} 27. Rc3 {[%clk 0:00:04.4]} 27... a5
{[%clk 0:00:35.8]} 28. f3 {[%clk 0:00:04.3]} 28... Rb2 {[%clk 0:00:24.8]} 29.
Rcc1 {[%clk 0:00:03.2]} 29... Ree2 {[%clk 0:00:23.9]} 30. Rfe1 {[%clk 0:00:03]}
30... Rxh2 {[%clk 0:00:22.6]} 0-1

[Event "*** Titled Tuesday Blitz"]
[Site "Chess.com"]
[Date "2021.03.30"]
[Round "6"]
[White "Keranke"]
[Black "Sweafty"]
[Result "1-0"]
[WhiteElo "2800"]
[BlackElo "2557"]
[TimeControl "180+1"]
[EndTime "11:06:12 PDT"]
[Termination "Keranke won by resignation"]

1. d4 {[%clk 0:03:00.9]} 1... Nf6 {[%clk 0:02:59.2]} 2. Bf4 {[%clk 0:03:00.8]}
2... d6 {[%clk 0:02:59.4]} 3. e3 {[%clk 0:03:00.9]} 3... Nbd7 {[%clk 0:02:58.7]}
4. Nf3 {[%clk 0:03:01]} 4... g6 {[%clk 0:02:59.3]} 5. h3 {[%clk 0:03:01.3]} 5...
Bg7 {[%clk 0:02:59.7]} 6. Bh2 {[%clk 0:03:01.9]} 6... O-O {[%clk 0:03:00.1]} 7.
Nbd2 {[%clk 0:03:02.4]} 7... e6 {[%clk 0:03:00.7]} 8. c3 {[%clk 0:03:02.8]} 8...
Qe7 {[%clk 0:03:01.2]} 9. Be2 {[%clk 0:03:03]} 9... b6 {[%clk 0:03:01.4]} 10.
O-O {[%clk 0:03:03.2]} 10... Bb7 {[%clk 0:03:01.9]} 11. a4 {[%clk 0:03:03.3]}
11... a5 {[%clk 0:03:01.9]} 12. Qc2 {[%clk 0:03:03.1]} 12... Rfe8 {[%clk
0:02:58.3]} 13. Bb5 {[%clk 0:02:59.2]} 13... h6 {[%clk 0:02:53.9]} 14. e4 {[%clk
0:02:56.9]} 14... e5 {[%clk 0:02:50.5]} 15. dxe5 {[%clk 0:02:53.9]} 15... dxe5
{[%clk 0:02:51.4]} 16. Rad1 {[%clk 0:02:50.6]} 16... Red8 {[%clk 0:02:48.1]} 17.
Rfe1 {[%clk 0:02:49.9]} 17... Nh5 {[%clk 0:02:46]} 18. Nc4 {[%clk 0:02:23.8]}
18... c6 {[%clk 0:02:28.6]} 19. Nd6 {[%clk 0:02:23.7]} 19... Nc5 {[%clk
0:02:08.7]} 20. Nxb7 {[%clk 0:02:16.9]} 20... Rxd1 {[%clk 0:02:07.2]} 21. Rxd1
{[%clk 0:02:14.6]} 21... cxb5 {[%clk 0:02:06.4]} 22. Nxc5 {[%clk 0:02:08.5]}
22... Qxc5 {[%clk 0:02:07.3]} 23. Rd5 {[%clk 0:02:08.5]} 23... Qc7 {[%clk
0:01:59.3]} 24. Nxe5 {[%clk 0:02:04.4]} 24... bxa4 {[%clk 0:01:52.8]} 25. Nxg6
{[%clk 0:01:57.9]} 25... Qc4 {[%clk 0:01:45]} 26. Ne7+ {[%clk 0:01:55.7]} 26...
Kf8 {[%clk 0:01:44.9]} 27. Rxh5 {[%clk 0:01:29.3]} 27... Kxe7 {[%clk 0:01:41.8]}
28. Be5 {[%clk 0:01:20.2]} 28... Bxe5 {[%clk 0:00:51]} 29. Rxe5+ {[%clk
0:01:21.1]} 29... Kf8 {[%clk 0:00:51.9]} 30. Qd2 {[%clk 0:01:17.8]} 30... Kg7
{[%clk 0:00:50.2]} 31. Qf4 {[%clk 0:01:06]} 31... Rd8 {[%clk 0:00:45.2]} 32.
Qg3+ {[%clk 0:01:02.1]} 32... Kh7 {[%clk 0:00:42.6]} 33. Qf3 {[%clk 0:00:56.8]}
33... Rd6 {[%clk 0:00:38.9]} 34. Rf5 {[%clk 0:00:55.5]} 34... Kg7 {[%clk
0:00:37.6]} 35. h4 {[%clk 0:00:45.3]} 35... Rg6 {[%clk 0:00:22.9]} 36. h5 {[%clk
0:00:44.1]} 36... Rg5 {[%clk 0:00:23.4]} 37. Rxg5+ {[%clk 0:00:40.5]} 37... hxg5
{[%clk 0:00:24.3]} 38. Qf5 {[%clk 0:00:40.9]} 38... Kh6 {[%clk 0:00:23.9]} 39.
g4 {[%clk 0:00:36.6]} 39... a3 {[%clk 0:00:16.7]} 40. Qf6+ {[%clk 0:00:30.3]}
40... Kh7 {[%clk 0:00:16.2]} 41. h6 {[%clk 0:00:30.7]} 1-0